[Event "POL-chT 1 Liga 2019"]
[Site "Dzwirzyno"]
[Date "2019.09.11"]
[Round "5.23"]
[White "Kelm, Robert"]
[Black "Dzierzak, Radoslaw"]
[Result "0-1"]
[ECO "B40"]
[WhiteElo "1585"]
[BlackElo "2253"]
[Annotator "NA"]
[PlyCount "80"]
[EventDate "2019.09.07"]
[EventType "team-tourn"]
[EventCountry "POL"]
[SourceTitle "playchess.com"]
[Source "ChessBase"]
[SourceQuality "1"]
[TimeControl "40/5400+30:1800+30"]

1. e4 {[%emt 0:00:00]} c5 {[%emt 0:00:00]} 2. Nf3 {[%emt 0:00:07]} e6 {[%emt 0:00:14]} 3. g3 {[%emt 0:01:22]} d5 {[%emt 0:04:05]} 4. e5 {[%emt 0:02:45]} Nc6 {[%emt 0:01:18]} 5. Bg2 {[%emt 0:00:10]} g5 {[%emt 0:01:18]} 6. h3 {[%emt 0:27:20]} Bg7 {[%emt 0:02:59]} 7. d4 {[%emt 0:06:27]} cxd4 {[%emt 0:01:54]} 8. Bxg5 {[%emt 0:01:43]} Qb6 {[%emt 0:02:13]} 9. Nbd2 {[%emt 0:06:29]} Nxe5 {[%emt 0:06:30]} 10. Nxe5 {[%emt 0:03:35]} Bxe5 {[%emt 0:00:12]} 11. Nb3 {[%emt 0:00:12]} Qb4+ {[%emt 0:06:07]} 12. Bd2 {[%emt 0:01:46]} Qc4 {[%emt 0:02:18]} 13. Bf1 {[%emt 0:01:36]} Qc7 {[%emt 0:04:05]} 14. f4 {[%emt 0:03:06]} Bf6 {[%emt 0:02:12]} 15. Bd3 {[%emt 0:00:53]} Ne7 {[%emt 0:02:33]} 16. Qf3 {[%emt 0:02:19]} Bd7 {[%emt 0:02:27]} 17. Ba5 {[%emt 0:04:09]} Qd6 {[%emt 0:03:06]} 18. a3 {[%emt 0:00:34]} Nc6 {[%emt 0:00:37]} 19. Bd2 {[%emt 0:00:37]} a5 {[%emt 0:01:55]} 20. Rd1 {[%emt 0:08:06]} a4 {[%emt 0:02:37]} 21. Nc1 {[%emt 0:02:00]} O-O-O {[%emt 0:01:06]} 22. Bb5 {[%emt 0:04:50]} e5 {[%emt 0:03:39]} 23. Bxc6 {[%emt 0:01:16]} Bxc6 {[%emt 0:01:19]} 24. fxe5 {[%emt 0:00:13]} Bxe5 {[%emt 0:02:26]} 25. Kf2 {[%emt 0:00:17]} Rhg8 {[%emt 0:05:29]} 26. Rhg1 {[%emt 0:02:53]} Rg6 {[%emt 0:12:22]} 27. Nd3 {[%emt 0:06:16]} Rf6 {[%emt 0:00:14]} 28. Bf4 {[%emt 0:00:20]} Bxf4 {[%emt 0:00:19]} 29. Nxf4 {[%emt 0:00:04]} d3 {[%emt 0:03:07]} 30. Rxd3 {[%emt 0:06:23]} Qc5+ {[%emt 0:01:59]} 31. Qe3 {[%emt 0:00:57]} d4 {[%emt 0:00:38]} 32. Qd2 {[%emt 0:00:05]} Kb8 {[%emt 0:04:14]} 33. b4 {[%emt 0:02:28]} axb3 {[%emt 0:01:21]} 34. cxb3 {[%emt 0:00:04]} Bb5 {[%emt 0:02:08]} 35. b4 {[%emt 0:02:26]} Qb6 {[%emt 0:00:52]} 36. Rf3 {[%emt 0:00:28]} Bc6 {[%emt 0:01:44]} 37. Rd3 {[%emt 0:00:17]} Be4 {[%emt 0:00:27]} 38. Rb3 {[%emt 0:00:08]} Qe6 {[%emt 0:01:09]} 39. Rf3 {[%emt 0:02:00]} Qd7 {[%emt 0:01:26]} 40. Rc1 {[%emt 0:00:00]} Bxf3 {[%emt 0:00:00]} 0-1

[Event "POL-chT 1 Liga 2019"]
[Site "Dzwirzyno"]
[Date "2019.09.11"]
[Round "5.24"]
[White "Malicka, Maria"]
[Black "Miturova, Magdalena"]
[Result "1/2-1/2"]
[ECO "C77"]
[WhiteElo "2095"]
[BlackElo "2219"]
[Annotator "NA"]
[PlyCount "38"]
[EventDate "2019.09.07"]
[EventType "team-tourn"]
[EventCountry "POL"]
[SourceTitle "playchess.com"]
[Source "ChessBase"]
[SourceQuality "1"]
[TimeControl "40/5400+30:1800+30"]

1. e4 {[%emt 0:00:00]} e5 {[%emt 0:00:00]} 2. Nf3 {[%emt 0:00:00]} Nc6 {[%emt 0:00:00]} 3. Bb5 {[%emt 0:00:00]} a6 {[%emt 0:00:00]} 4. Ba4 {[%emt 0:00:00]} Nf6 {[%emt 0:00:00]} 5. d3 {[%emt 0:00:00]} b5 {[%emt 0:01:05]} 6. Bb3 {[%emt 0:00:00]} Be7 {[%emt 0:00:12]} 7. Nc3 {[%emt 0:00:04]} d6 {[%emt 0:02:02]} 8. a3 {[%emt 0:00:14]} O-O {[%emt 0:02:17]} 9. Nd5 {[%emt 0:00:12]} Na5 {[%emt 0:06:05]} 10. Nxe7+ {[%emt 0:04:03]} Qxe7 {[%emt 0:00:12]} 11. Ba2 {[%emt 0:00:09]} c5 {[%emt 0:03:36]} 12. O-O {[%emt 0:03:11]} Be6 {[%emt 0:03:35]} 13. b4 {[%emt 0:04:49]} Bxa2 {[%emt 0:11:14]} 14. Rxa2 {[%emt 0:00:11]} Nc6 {[%emt 0:00:34]} 15. c3 {[%emt 0:02:32]} d5 {[%emt 0:15:45]} 16. Bg5 {[%emt 0:12:33]} dxe4 {[%emt 0:08:17]} 17. Bxf6 {[%emt 0:01:09]} Qxf6 {[%emt 0:00:11]} 18. dxe4 {[%emt 0:00:02]} Rfd8 {[%emt 0:00:56]} 19. Qe2 {[%emt 0:03:58]} Qe7 {[%emt 0:04:34]} 1/2-1/2

[Event "POL-chT 1 Liga 2019"]
[Site "Dzwirzyno"]
[Date "2019.09.11"]
[Round "5.27"]
[White "Grabarczyk, Miroslaw"]
[Black "Tofil, Borys"]
[Result "1/2-1/2"]
[ECO "A88"]
[WhiteElo "2374"]
[BlackElo "2202"]
[Annotator "NA"]
[PlyCount "53"]
[EventDate "2019.09.07"]
[EventType "team-tourn"]
[EventCountry "POL"]
[SourceTitle "playchess.com"]
[Source "ChessBase"]
[SourceQuality "1"]
[TimeControl "40/5400+30:1800+30"]

1. d4 {[%emt 0:00:00]} f5 {[%emt 0:00:00]} 2. Nf3 {[%emt 0:01:03]} Nf6 {[%emt 0:00:04]} 3. g3 {[%emt 0:01:37]} g6 {[%emt 0:00:28]} 4. Bg2 {[%emt 0:00:42]} Bg7 {[%emt 0:00:28]} 5. c4 {[%emt 0:01:12]} d6 {[%emt 0:00:29]} 6. O-O {[%emt 0:02:02]} c6 {[%emt 0:03:17]} 7. Nc3 {[%emt 0:04:16]} O-O {[%emt 0:00:37]} 8. d5 {[%emt 0:06:29]} e5 {[%emt 0:34:00]} 9. dxe6 {[%emt 0:01:16]} Bxe6 {[%emt 0:00:28]} 10. Qd3 {[%emt 0:00:45]} Na6 {[%emt 0:04:11]} 11. Bf4 {[%emt 0:02:52]} Re8 {[%emt 0:09:58]} 12. Rad1 {[%emt 0:07:13]} Nc5 {[%emt 0:08:15]} 13. Qc2 {[%emt 0:05:46]} Qb6 {[%emt 0:09:04]} 14. b3 {[%emt 0:08:28]} d5 {[%emt 0:06:20]} 15. cxd5 {[%emt 0:03:30]} Nxd5 {[%emt 0:01:39]} 16. Nxd5 {[%emt 0:03:56]} Bxd5 {[%emt 0:00:12]} 17. Ng5 {[%emt 0:03:48]} Ne4 {[%emt 0:03:46]} 18. Nxe4 {[%emt 0:02:34]} fxe4 {[%emt 0:00:05]} 19. Be3 {[%emt 0:01:01]} Qb4 {[%emt 0:01:12]} 20. Bd2 {[%emt 0:08:23]} Qb6 {[%emt 0:01:26]} 21. Be3 {[%emt 0:05:45]} Qb4 {[%emt 0:00:06]} 22. Bd2 {[%emt 0:03:30]} Qb6 {[%emt 0:00:09]} 23. e3 {[%emt 0:02:25]} a5 {[%emt 0:01:15]} 24. Rb1 {[%emt 0:00:29]} Qa7 {[%emt 0:03:08]} 25. Rfc1 {[%emt 0:05:03]} b5 {[%emt 0:03:03]} 26. Bc3 {[%emt 0:01:51]} a4 {[%emt 0:01:14]} 27. Bxg7 {[%emt 0:02:08]} 1/2-1/2

[Event "POL-chT 1 Liga 2019"]
[Site "Dzwirzyno"]
[Date "2019.09.11"]
[Round "5.28"]
[White "Kowalski, Maciej"]
[Black "Sabuk, Piotr"]
[Result "1-0"]
[ECO "A05"]
[WhiteElo "2095"]
[BlackElo "2397"]
[Annotator "RC"]
[PlyCount "219"]
[EventDate "2019.09.07"]
[EventType "team-tourn"]
[EventCountry "POL"]
[SourceTitle "playchess.com"]
[Source "ChessBase"]
[SourceQuality "1"]
[TimeControl "40/5400+30:1800+30"]

1. Nf3 {[%emt 0:00:00]} Nf6 {[%emt 0:00:40]} 2. b3 {[%emt 0:00:00]} d5 {[%emt 0:00:31]} 3. d4 {[%emt 0:00:00]} c5 {[%emt 0:01:49]} 4. e3 {[%emt 0:01:52]} Nc6 {[%emt 0:05:40]} 5. Be2 {[%emt 0:02:22]} Bf5 {[%emt 0:07:01]} 6. O-O {[%emt 0:04:43]} e6 {[%emt 0:01:12]} 7. Bb2 {[%emt 0:06:45]} Be7 {[%emt 0:07:40]} 8. c4 {[%emt 0:03:14]} dxc4 {[%emt 0:04:12]} 9. Bxc4 {[%emt 0:07:52]} O-O {[%emt 0:00:43]} 10. Qe2 {[%emt 0:01:14]} Bg4 {[%emt 0:11:24]} 11. dxc5 {[%emt 0:17:54]} Bxc5 {[%emt 0:00:28]} 12. Nbd2 {[%emt 0:00:24]} Qe7 {[%emt 0:02:03]} 13. Bd3 {[%emt 0:08:10]} Ba3 {[%emt 0:13:00]} 14. Ne4 {[%emt 0:09:29]} Nd5 {[%emt 0:04:33]} 15. Ng3 {[%emt 0:04:07]} Bxf3 {[%emt 0:04:56]} 16. gxf3 {[%emt 0:00:11]} Rac8 {[%emt 0:04:57]} 17. Rac1 {[%emt 0:03:25]} f5 {[%emt 0:15:44]} 18. Kh1 {[%emt 0:05:15]} Bxb2 {[%emt 0:01:27]} 19. Qxb2 {[%emt 0:00:02]} f4 {[%emt 0:01:23]} 20. Nh5 {[%emt 0:01:59]} Rf7 {[%emt 0:05:58]} 21. Rg1 {[%emt 0:00:41]} fxe3 {[%emt 0:01:57]} 22. Nxg7 {[%emt 0:00:15]} Rxg7 {[%emt 0:00:32]} 23. Rxg7+ {[%emt 0:00:05]} Qxg7 {[%emt 0:00:02]} 24. Rg1 {[%emt 0:00:07]} Qxg1+ {[%emt 0:00:13]} 25. Kxg1 {[%emt 0:00:02]} Nf4 {[%emt 0:00:57]} 26. Bc4 {[%emt 0:03:28]} e2 {[%emt 0:01:44]} 27. Bxe2 {[%emt 0:02:40]} Nd4 {[%emt 0:00:02]} 28. Bc4 {[%emt 0:01:12]} Rd8 {[%emt 0:00:13]} 29. Kh1 {[%emt 0:06:59]} Nxf3 {[%emt 0:00:47]} 30. Be2 {[%emt 0:00:01]} Nd4 {[%emt 0:01:32]} 31. Bd1 {[%emt 0:00:49]} e5 {[%emt 0:00:37]} 32. h4 {[%emt 0:01:36]} Kf7 {[%emt 0:00:35]} 33. Qc3 {[%emt 0:01:52]} Kf6 {[%emt 0:00:19]} 34. Bf3 {[%emt 0:01:44]} Nxf3 {[%emt 0:00:36]} 35. Qxf3 {[%emt 0:00:05]} Rd7 {[%emt 0:00:32]} 36. Qg4 {[%emt 0:00:58]} Rg7 {[%emt 0:01:12]} 37. Qc8 {[%emt 0:00:03]} h5 {[%emt 0:00:32]} 38. Qd8+ {[%emt 0:04:22]} Ke6 {[%emt 0:00:38]} 39. f3 {[%emt 0:00:49]} a6 {[%emt 0:00:29]} 40. a4 {[%emt 0:00:00]} Rd7 {[%emt 0:00:00]} 41. Qe8+ {[%emt 0:04:44]} Re7 {[%emt 0:06:04]} 42. Qc8+ {[%emt 0:00:38]} Kf6 {[%emt 0:00:08]} 43. Kg1 {[%emt 0:01:21]} Ng6 {[%emt 0:03:04]} 44. Qc4 {[%emt 0:01:36]} Kg7 {[%emt 0:03:17]} 45. Kf2 {[%emt 0:02:16]} e4 {[%emt 0:04:52]} 46. fxe4 {[%emt 0:01:09]} Nxh4 {[%emt 0:00:58]} 47. Ke3 {[%emt 0:07:08]} Ng6 {[%emt 0:01:05]} 48. Qd5 {[%emt 0:02:07]} Kh6 {[%emt 0:05:32]} 49. b4 {[%emt 0:03:23]} Ne5 {[%emt 0:01:20]} 50. Qg8 {[%emt 0:03:40]} Ng6 {[%emt 0:00:48]} 51. Qc8 {[%emt 0:00:46]} Kg7 {[%emt 0:01:00]} 52. Kd4 {[%emt 0:00:27]} Kh7 {[%emt 0:00:47]} 53. Kc5 {[%emt 0:01:26]} Kh6 {[%emt 0:00:32]} 54. Kd6 {[%emt 0:02:53]} h4 {[%emt 0:01:27]} 55. Qg4 {[%emt 0:01:54]} Kg7 {[%emt 0:00:29]} 56. b5 {[%emt 0:00:29]} axb5 {[%emt 0:00:31]} 57. axb5 {[%emt 0:00:01]} Kf6 {[%emt 0:02:18]} 58. Qf5+ {[%emt 0:00:16]} Kg7 {[%emt 0:00:00]} 59. b6 {[%emt 0:00:27]} Re8 {[%emt 0:04:49]} 60. Qd7+ {[%emt 0:02:10]} Re7 {[%emt 0:00:05]} 61. Qc8 {[%emt 0:00:08]} Kf7 {[%emt 0:00:29]} 62. Qc4+ {[%emt 0:02:33]} Kf6 {[%emt 0:00:44]} 63. Qd4+ {[%emt 0:00:20]} Kf7 {[%emt 0:00:12]} 64. Qd5+ {[%emt 0:00:05]} Kf6 {[%emt 0:00:19]} 65. Qf5+ {[%emt 0:00:36]} Kg7 {[%emt 0:00:01]} 66. Qf3 {[%emt 0:01:03]} Rd7+ {[%emt 0:00:49]} 67. Kc5 {[%emt 0:00:34]} Re7 {[%emt 0:00:30]} 68. Qg2 {[%emt 0:00:15]} Re6 {[%emt 0:01:48]} 69. Qg4 {[%emt 0:00:26]} Re7 {[%emt 0:00:58]} 70. Kd6 {[%emt 0:00:06]} Re5 {[%emt 0:00:41]} 71. Qc8 {[%emt 0:00:50]} Re7 {[%emt 0:00:05]} 72. e5 {[%emt 0:00:14]} Kf7 {[%emt 0:00:53]} 73. e6+ {[%emt 0:00:16]} Kf6 {[%emt 0:00:19]} 74. Qc3+ {[%emt 0:00:43]} Kf5 {[%emt 0:00:01]} 75. Qd3+ {[%emt 0:00:14]} Kg5 {[%emt 0:00:29]} 76. Qe3+ {[%emt 0:02:18]} Kf5 {[%emt 0:00:20]} 77. Qf3+ {[%emt 0:00:11]} Kg5 {[%emt 0:00:05]} 78. Qg2+ {[%emt 0:00:30]} Kf5 {[%emt 0:00:15]} 79. Qxg6+ {[%emt 0:00:33]} Kxg6 {[%emt 0:00:01]} 80. Kxe7 {[%emt 0:00:02]} h3 {[%emt 0:00:08]} 81. Kd7 {[%emt 0:00:21]} h2 {[%emt 0:00:05]} 82. e7 {[%emt 0:00:02]} h1=Q {[%emt 0:00:06]} 83. e8=Q+ {[%emt 0:00:06]} Kg5 {[%emt 0:03:14]} 84. Qe5+ {[%emt 0:00:10]} Kg4 {[%emt 0:00:44]} 85. Qe6+ {[%emt 0:00:07]} Kf4 {[%emt 0:00:34]} 86. Kc7 {[%emt 0:00:29]} Kg3 {[%emt 0:00:33]} 87. Kb8 {[%emt 0:01:10]} Qf3 {[%emt 0:00:38]} 88. Qd6+ {[%emt 0:00:18]} Kf2 {[%emt 0:00:22]} 89. Qc7 {[%emt 0:00:13]} Qd5 {[%emt 0:00:34]} 90. Qxb7 {[%emt 0:00:39]} Qd8+ {[%emt 0:00:17]} 91. Ka7 {[%emt 0:00:12]} Qd4 {[%emt 0:00:43]} 92. Qf7+ {[%emt 0:00:13]} Ke1 {[%emt 0:00:35]} 93. Qe6+ {[%emt 0:00:09]} Kd1 {[%emt 0:00:29]} 94. Qb3+ {[%emt 0:00:13]} Kc1 {[%emt 0:00:14]} 95. Ka6 {[%emt 0:00:24]} Qd6 {[%emt 0:00:22]} 96. Qc3+ {[%emt 0:00:11]} Kd1 {[%emt 0:00:44]} 97. Ka7 {[%emt 0:00:18]} Ke2 {[%emt 0:00:35]} 98. b7 {[%emt 0:00:15]} Qe7 {[%emt 0:00:31]} 99. Qb2+ {[%emt 0:01:27]} Kf1 {[%emt 0:00:26]} 100. Qb1+ {[%emt 0:01:10]} Kg2 {[%emt 0:00:14]} 101. Qc2+ {[%emt 0:00:02]} Kg1 {[%emt 0:00:10]} 102. Qg6+ {[%emt 0:00:24]} Kh1 {[%emt 0:00:25]} 103. Qh5+ {[%emt 0:00:24]} Kg1 {[%emt 0:00:11]} 104. Qg4+ {[%emt 0:00:07]} Kh1 {[%emt 0:00:11]} 105. Qf3+ {[%emt 0:00:06]} Kg1 {[%emt 0:00:57]} 106. Ka8 {[%emt 0:00:10]} Qc7 {[%emt 0:00:36]} 107. Qg4+ {[%emt 0:00:27]} Kh1 {[%emt 0:00:14]} 108. Qe4+ {[%emt 0:00:22]} Kg1 {[%emt 0:00:24]} 109. b8=Q {[%emt 0:00:05]} Qa5+ {[%emt 0:00:58]} 110. Qa7+ {[%emt 0:00:01]} 1-0

[Event "POL-chT 1 Liga 2019"]
[Site "Dzwirzyno"]
[Date "2019.09.11"]
[Round "5.29"]
[White "Kucza, Karol"]
[Black "Rogala, Milosz"]
[Result "1-0"]
[ECO "B17"]
[WhiteElo "2280"]
[BlackElo "1788"]
[Annotator "NA"]
[PlyCount "119"]
[EventDate "2019.09.07"]
[EventType "team-tourn"]
[EventCountry "POL"]
[SourceTitle "playchess.com"]
[Source "ChessBase"]
[SourceQuality "1"]
[TimeControl "40/5400+30:1800+30"]

1. e4 {[%emt 0:00:07]} c6 {[%emt 0:00:00]} 2. d4 {[%emt 0:00:12]} d5 {[%emt 0:00:06]} 3. Nc3 {[%emt 0:00:13]} dxe4 {[%emt 0:00:30]} 4. Nxe4 {[%emt 0:00:06]} Nd7 {[%emt 0:00:33]} 5. Ng5 {[%emt 0:00:15]} Ngf6 {[%emt 0:00:27]} 6. Bd3 {[%emt 0:00:07]} e6 {[%emt 0:00:33]} 7. N1f3 {[%emt 0:00:40]} Bd6 {[%emt 0:00:19]} 8. Qe2 {[%emt 0:00:12]} h6 {[%emt 0:00:50]} 9. Ne4 {[%emt 0:00:06]} Nxe4 {[%emt 0:00:21]} 10. Qxe4 {[%emt 0:00:06]} Nf6 {[%emt 0:00:07]} 11. Qe2 {[%emt 0:00:04]} b6 {[%emt 0:00:50]} 12. O-O {[%emt 0:00:20]} O-O {[%emt 0:01:32]} 13. b3 {[%emt 0:30:50]} Bb7 {[%emt 0:05:06]} 14. c4 {[%emt 0:00:43]} c5 {[%emt 0:00:45]} 15. dxc5 {[%emt 0:00:04]} Bxc5 {[%emt 0:00:21]} 16. Bb2 {[%emt 0:00:03]} Qe7 {[%emt 0:01:29]} 17. Rad1 {[%emt 0:00:25]} Rfd8 {[%emt 0:02:19]} 18. Ne5 {[%emt 0:00:36]} a5 {[%emt 0:06:40]} 19. Bc2 {[%emt 0:05:08]} Rxd1 {[%emt 0:08:12]} 20. Rxd1 {[%emt 0:01:04]} Rd8 {[%emt 0:00:16]} 21. h3 {[%emt 0:06:49]} Qc7 {[%emt 0:11:50]} 22. Rxd8+ {[%emt 0:06:49]} Qxd8 {[%emt 0:00:11]} 23. Qd3 {[%emt 0:00:08]} Qxd3 {[%emt 0:03:52]} 24. Nxd3 {[%emt 0:00:14]} Bd6 {[%emt 0:00:22]} 25. f3 {[%emt 0:02:23]} Nd7 {[%emt 0:02:46]} 26. Kf2 {[%emt 0:03:33]} Nc5 {[%emt 0:01:37]} 27. Ke3 {[%emt 0:00:26]} f6 {[%emt 0:01:44]} 28. Nxc5 {[%emt 0:06:58]} Bxc5+ {[%emt 0:00:14]} 29. Bd4 {[%emt 0:00:06]} Kf7 {[%emt 0:05:24]} 30. Kd3 {[%emt 0:01:40]} Ke7 {[%emt 0:02:33]} 31. Bxc5+ {[%emt 0:00:25]} bxc5 {[%emt 0:00:22]} 32. Kc3 {[%emt 0:00:02]} f5 {[%emt 0:02:08]} 33. a3 {[%emt 0:00:12]} Kd6 {[%emt 0:01:48]} 34. b4 {[%emt 0:00:29]} axb4+ {[%emt 0:01:16]} 35. axb4 {[%emt 0:00:03]} cxb4+ {[%emt 0:01:51]} 36. Kxb4 {[%emt 0:00:05]} Bc6 {[%emt 0:00:19]} 37. c5+ {[%emt 0:00:31]} Kc7 {[%emt 0:01:47]} 38. Kc3 {[%emt 0:00:24]} Bb5 {[%emt 0:01:44]} 39. g3 {[%emt 0:00:17]} Bc6 {[%emt 0:08:43]} 40. f4 {[%emt 0:00:00]} Bg2 {[%emt 0:00:00]} 41. h4 {[%emt 0:00:13]} Bd5 {[%emt 0:00:43]} 42. Kd4 {[%emt 0:00:05]} Ba2 {[%emt 0:01:11]} 43. Ba4 {[%emt 0:00:19]} Bd5 {[%emt 0:01:11]} 44. Ke5 {[%emt 0:00:23]} Ba2 {[%emt 0:00:30]} 45. Be8 {[%emt 0:00:24]} Bd5 {[%emt 0:00:27]} 46. Bb5 {[%emt 0:08:32]} Bb3 {[%emt 0:03:54]} 47. Kd4 {[%emt 0:01:24]} Bd5 {[%emt 0:01:01]} 48. Ba4 {[%emt 0:00:39]} Ba2 {[%emt 0:00:38]} 49. Be8 {[%emt 0:00:21]} Bb3 {[%emt 0:00:32]} 50. Bb5 {[%emt 0:05:39]} Bd5 {[%emt 0:03:17]} 51. Bc4 {[%emt 0:07:29]} Be4 {[%emt 0:02:53]} 52. Bxe6 {[%emt 0:00:06]} Kc6 {[%emt 0:00:07]} 53. g4 {[%emt 0:01:06]} g6 {[%emt 0:01:36]} 54. g5 {[%emt 0:00:14]} hxg5 {[%emt 0:00:15]} 55. hxg5 {[%emt 0:00:06]} Bb1 {[%emt 0:00:17]} 56. Bf7 {[%emt 0:00:08]} Be4 {[%emt 0:00:21]} 57. Bxg6 {[%emt 0:00:06]} Bb1 {[%emt 0:00:07]} 58. Be8+ {[%emt 0:00:29]} Kc7 {[%emt 0:00:14]} 59. Ke5 {[%emt 0:00:06]} Kd8 {[%emt 0:00:20]} 60. Bg6 {[%emt 0:00:09]} 1-0